[Event "*** SCC Grand Prix: Titled Tuesday Blitz"]
[Site "Chess.com"]
[Date "2020.08.11"]
[Round "9"]
[White "GregShahade"]
[Black "Fins0905"]
[Result "0-1"]
[WhiteElo "2710"]
[BlackElo "2650"]
[TimeControl "180+1"]
[EndTime "11:47:32 PDT"]
[Termination "Fins0905 won by resignation"]

1. e4 {[%clk 0:03:00.9]} 1... d5 {[%clk 0:02:55.1]} 2. exd5 {[%clk 0:02:58.4]}
2... Qxd5 {[%clk 0:02:55.5]} 3. Nc3 {[%clk 0:02:58.3]} 3... Qe5+ {[%clk
0:02:49.7]} 4. Be2 {[%clk 0:02:56.7]} 4... c6 {[%clk 0:02:49.4]} 5. Nf3 {[%clk
0:02:56.7]} 5... Qc7 {[%clk 0:02:49.1]} 6. O-O {[%clk 0:02:56.8]} 6... Nf6
{[%clk 0:02:49]} 7. d3 {[%clk 0:02:48.7]} 7... Bg4 {[%clk 0:02:39.3]} 8. h3
{[%clk 0:02:48]} 8... Bh5 {[%clk 0:02:39]} 9. Bg5 {[%clk 0:02:47.9]} 9... e6
{[%clk 0:02:35.5]} 10. Qd2 {[%clk 0:02:47.4]} 10... Nbd7 {[%clk 0:02:35.2]} 11.
Rfe1 {[%clk 0:02:46]} 11... Be7 {[%clk 0:02:33.9]} 12. Ne4 {[%clk 0:02:36.4]}
12... O-O {[%clk 0:02:14]} 13. Rad1 {[%clk 0:02:31.3]} 13... Rad8 {[%clk
0:02:08.3]} 14. Qc1 {[%clk 0:02:05.4]} 14... Bg6 {[%clk 0:02:02.2]} 15. Bf4
{[%clk 0:02:00.2]} 15... Qa5 {[%clk 0:01:57.7]} 16. Nc3 {[%clk 0:01:52.8]} 16...
Bb4 {[%clk 0:01:38]} 17. Bd2 {[%clk 0:01:40.1]} 17... Bxc3 {[%clk 0:01:35]} 18.
Bxc3 {[%clk 0:01:41]} 18... Qxa2 {[%clk 0:01:35]} 19. Qf4 {[%clk 0:01:38.6]}
19... Nd5 {[%clk 0:01:26.1]} 20. Qd2 {[%clk 0:01:34.8]} 20... Nxc3 {[%clk
0:01:24.4]} 21. Qxc3 {[%clk 0:01:28.3]} 21... Qd5 {[%clk 0:01:23.1]} 22. Ra1
{[%clk 0:01:20.9]} 22... a6 {[%clk 0:01:20.8]} 23. Nd2 {[%clk 0:01:21.6]} 23...
Qd6 {[%clk 0:01:08.6]} 24. Nc4 {[%clk 0:01:20.1]} 24... Qc7 {[%clk 0:01:08.5]}
25. Bf3 {[%clk 0:01:19.9]} 25... h6 {[%clk 0:01:04.6]} 26. Qb4 {[%clk
0:01:16.3]} 26... Nf6 {[%clk 0:00:58.3]} 27. Ne5 {[%clk 0:01:14.2]} 27... Bh7
{[%clk 0:00:58.3]} 28. Qb3 {[%clk 0:01:09.4]} 28... Rfe8 {[%clk 0:00:53.1]} 29.
g3 {[%clk 0:01:01.9]} 29... Bf5 {[%clk 0:00:50.4]} 30. h4 {[%clk 0:01:01.7]}
30... Nd7 {[%clk 0:00:49.1]} 31. Nc4 {[%clk 0:00:58.4]} 31... e5 {[%clk
0:00:46.9]} 32. Re2 {[%clk 0:00:51.7]} 32... Be6 {[%clk 0:00:46.2]} 33. Qc3
{[%clk 0:00:50.3]} 33... Bd5 {[%clk 0:00:34.7]} 34. Be4 {[%clk 0:00:42.8]} 34...
Nf6 {[%clk 0:00:21]} 35. Bg2 {[%clk 0:00:29.6]} 35... Bxg2 {[%clk 0:00:20]} 36.
Kxg2 {[%clk 0:00:30.5]} 36... Nd5 {[%clk 0:00:20.4]} 37. Qb3 {[%clk 0:00:29.9]}
37... f6 {[%clk 0:00:18.3]} 38. Rae1 {[%clk 0:00:29.2]} 38... Qf7 {[%clk
0:00:18.5]} 39. Kg1 {[%clk 0:00:29]} 39... Rd7 {[%clk 0:00:17.2]} 40. Na5 {[%clk
0:00:28.4]} 40... Ne7 {[%clk 0:00:16.3]} 41. Qb4 {[%clk 0:00:24.3]} 41... Nf5
{[%clk 0:00:16.1]} 42. c3 {[%clk 0:00:17.3]} 42... Rc8 {[%clk 0:00:15.7]} 43.
Qe4 {[%clk 0:00:16.3]} 43... Nd6 {[%clk 0:00:15.5]} 44. Qf3 {[%clk 0:00:16.4]}
44... Qd5 {[%clk 0:00:14]} 45. Qxd5+ {[%clk 0:00:15.9]} 45... cxd5 {[%clk
0:00:14.2]} 46. Nb3 {[%clk 0:00:16.7]} 46... Nb5 {[%clk 0:00:13.9]} 47. Ra1
{[%clk 0:00:15.8]} 47... Rdc7 {[%clk 0:00:13.1]} 48. Rd2 {[%clk 0:00:15.3]}
48... Kf7 {[%clk 0:00:12.3]} 49. Kg2 {[%clk 0:00:15]} 49... Ke6 {[%clk
0:00:12.6]} 50. Re1 {[%clk 0:00:15]} 50... Kf7 {[%clk 0:00:12.2]} 51. f3 {[%clk
0:00:14.8]} 51... Nd6 {[%clk 0:00:12.3]} 52. Rde2 {[%clk 0:00:13.4]} 52... b6
{[%clk 0:00:12.1]} 53. Kf2 {[%clk 0:00:13.7]} 53... a5 {[%clk 0:00:12.2]} 54.
Nc1 {[%clk 0:00:13.3]} 54... a4 {[%clk 0:00:12.3]} 55. Na2 {[%clk 0:00:13.3]}
55... Nb5 {[%clk 0:00:11.4]} 56. Rc1 {[%clk 0:00:11.9]} 56... a3 {[%clk
0:00:11.1]} 57. bxa3 {[%clk 0:00:12.1]} 57... Nxa3 {[%clk 0:00:11.1]} 58. Rb2
{[%clk 0:00:12.7]} 58... b5 {[%clk 0:00:08.9]} 59. Rb3 {[%clk 0:00:12.8]} 59...
Ra8 {[%clk 0:00:08.7]} 60. Nb4 {[%clk 0:00:13.4]} 60... Ke6 {[%clk 0:00:08.4]}
61. Ra1 {[%clk 0:00:12.6]} 61... Rca7 {[%clk 0:00:08.3]} 62. Nc6 {[%clk
0:00:13]} 62... Ra6 {[%clk 0:00:08.3]} 63. Nb4 {[%clk 0:00:13]} 63... Ra4 {[%clk
0:00:08.4]} 64. Ra2 {[%clk 0:00:13]} 64... Kd6 {[%clk 0:00:07.2]} 65. Kg2 {[%clk
0:00:11.5]} 65... Kc5 {[%clk 0:00:07.3]} 66. Kh3 {[%clk 0:00:11.8]} 66... d4
{[%clk 0:00:07.6]} 67. cxd4+ {[%clk 0:00:11.3]} 67... exd4 {[%clk 0:00:08.2]}
68. Nc2 {[%clk 0:00:08.9]} 68... Nxc2 {[%clk 0:00:07.9]} 69. Rxc2+ {[%clk
0:00:09.8]} 69... Kb6 {[%clk 0:00:08.3]} 70. Rcb2 {[%clk 0:00:10.1]} 70... R8a5
{[%clk 0:00:08.3]} 71. Rc2 {[%clk 0:00:09.9]} 71... Ra3 {[%clk 0:00:07.3]} 72.
Rcb2 {[%clk 0:00:09.3]} 72... Rxb3 {[%clk 0:00:07.5]} 73. Rxb3 {[%clk
0:00:10.2]} 73... Kc5 {[%clk 0:00:07.6]} 74. Kg4 {[%clk 0:00:10.8]} 74... b4
{[%clk 0:00:07.6]} 75. Kf5 {[%clk 0:00:11.3]} 75... Ra3 {[%clk 0:00:07.9]} 76.
Rb1 {[%clk 0:00:11.5]} 76... Rxd3 {[%clk 0:00:08]} 77. Ke4 {[%clk 0:00:11.9]}
77... Re3+ {[%clk 0:00:07.9]} 78. Kf4 {[%clk 0:00:12.4]} 78... b3 {[%clk
0:00:08.2]} 79. g4 {[%clk 0:00:12.1]} 79... Kc4 {[%clk 0:00:07.7]} 80. h5 {[%clk
0:00:12.7]} 80... Re2 {[%clk 0:00:07.4]} 81. Kf5 {[%clk 0:00:12.3]} 81... b2
{[%clk 0:00:07.1]} 82. f4 {[%clk 0:00:12.6]} 82... Kc3 {[%clk 0:00:07.2]} 83.
Kg6 {[%clk 0:00:13.3]} 83... Rg2 {[%clk 0:00:06.7]} 84. Kf5 {[%clk 0:00:12.1]}
84... Kc2 {[%clk 0:00:06.4]} 85. Re1 {[%clk 0:00:11.9]} 85... b1=Q {[%clk
0:00:06.6]} 86. Rxb1 {[%clk 0:00:12.6]} 86... Kxb1 {[%clk 0:00:07.3]} 87. g5
{[%clk 0:00:13.2]} 87... fxg5 {[%clk 0:00:07.2]} 88. fxg5 {[%clk 0:00:14.1]}
88... Rxg5+ {[%clk 0:00:07.5]} 89. Ke4 {[%clk 0:00:14.8]} 89... Rxh5 {[%clk
0:00:07.8]} 90. Kd3 {[%clk 0:00:15.6]} 90... Rf5 {[%clk 0:00:07.9]} 91. Kxd4
{[%clk 0:00:15.9]} 91... Rf8 {[%clk 0:00:08.3]} 92. Ke3 {[%clk 0:00:16.8]} 92...
h5 {[%clk 0:00:08.9]} 0-1

[Event "*** SCC Grand Prix: Titled Tuesday Blitz"]
[Site "Chess.com"]
[Date "2020.08.11"]
[Round "9"]
[White "Donskov_AN"]
[Black "Politov_Pavel"]
[Result "0-1"]
[WhiteElo "2542"]
[BlackElo "2141"]
[TimeControl "180+1"]
[EndTime "11:47:49 PDT"]
[Termination "Politov_Pavel won by checkmate"]

1. e4 {[%clk 0:03:00.9]} 1... e6 {[%clk 0:02:55.8]} 2. d4 {[%clk 0:02:56.7]}
2... d5 {[%clk 0:02:56.2]} 3. Nc3 {[%clk 0:02:57.3]} 3... Bb4 {[%clk 0:02:56.1]}
4. Ne2 {[%clk 0:02:57.7]} 4... dxe4 {[%clk 0:02:55]} 5. a3 {[%clk 0:02:57.7]}
5... Be7 {[%clk 0:02:55.7]} 6. Nxe4 {[%clk 0:02:57.9]} 6... Nf6 {[%clk 0:02:55]}
7. N2c3 {[%clk 0:02:56.4]} 7... Nbd7 {[%clk 0:02:51.1]} 8. Bd3 {[%clk
0:02:53.6]} 8... Nxe4 {[%clk 0:02:47.5]} 9. Nxe4 {[%clk 0:02:52.9]} 9... Nf6
{[%clk 0:02:46.5]} 10. c3 {[%clk 0:02:51.1]} 10... Bd7 {[%clk 0:02:38.5]} 11.
Qe2 {[%clk 0:02:50.1]} 11... Bc6 {[%clk 0:02:37.8]} 12. O-O {[%clk 0:02:50]}
12... Nxe4 {[%clk 0:02:34.4]} 13. Bxe4 {[%clk 0:02:50.1]} 13... Bxe4 {[%clk
0:02:35.3]} 14. Qxe4 {[%clk 0:02:50.8]} 14... Qd5 {[%clk 0:02:35.4]} 15. Qe2
{[%clk 0:02:50.2]} 15... O-O {[%clk 0:02:34.9]} 16. Be3 {[%clk 0:02:49.9]} 16...
b5 {[%clk 0:02:29.5]} 17. Rac1 {[%clk 0:02:44.3]} 17... Rab8 {[%clk 0:02:15.5]}
18. Rc2 {[%clk 0:02:36]} 18... a5 {[%clk 0:02:01]} 19. Rfc1 {[%clk 0:02:35.4]}
19... Bd6 {[%clk 0:02:00.9]} 20. Bd2 {[%clk 0:01:51.2]} 20... a4 {[%clk
0:01:51.2]} 21. Be3 {[%clk 0:01:45.8]} 21... Rfd8 {[%clk 0:01:50.3]} 22. c4
{[%clk 0:01:44.3]} 22... bxc4 {[%clk 0:01:49.5]} 23. Rxc4 {[%clk 0:01:44.9]}
23... Qb5 {[%clk 0:01:30.3]} 24. R4c2 {[%clk 0:01:45]} 24... Qxe2 {[%clk
0:01:28.2]} 25. Rxe2 {[%clk 0:01:45]} 25... Rb3 {[%clk 0:01:27.1]} 26. Rc4
{[%clk 0:01:43.4]} 26... Ra8 {[%clk 0:01:26.2]} 27. Kf1 {[%clk 0:01:39.1]} 27...
Kf8 {[%clk 0:01:26.3]} 28. h3 {[%clk 0:01:39]} 28... Ke7 {[%clk 0:01:26.7]} 29.
Rec2 {[%clk 0:01:33.4]} 29... Kd7 {[%clk 0:01:26.4]} 30. Ke2 {[%clk 0:01:33.3]}
30... h5 {[%clk 0:01:22.5]} 31. Bc1 {[%clk 0:01:28.4]} 31... Ra5 {[%clk
0:01:19.5]} 32. R2c3 {[%clk 0:01:27.3]} 32... Rxc3 {[%clk 0:01:16.9]} 33. Rxc3
{[%clk 0:01:27.8]} 33... c5 {[%clk 0:01:08.7]} 34. Be3 {[%clk 0:01:17.7]} 34...
cxd4 {[%clk 0:00:58.7]} 35. Bxd4 {[%clk 0:01:18]} 35... e5 {[%clk 0:00:51.8]}
36. Be3 {[%clk 0:01:17.7]} 36... Rb5 {[%clk 0:00:51.8]} 37. Bc1 {[%clk
0:01:17.2]} 37... Bc5 {[%clk 0:00:46.4]} 38. Rc4 {[%clk 0:01:16.5]} 38... Bd4
{[%clk 0:00:45.1]} 39. Rxa4 {[%clk 0:01:14.4]} 39... Bxb2 {[%clk 0:00:45.2]} 40.
Be3 {[%clk 0:01:06.1]} 40... Rb7 {[%clk 0:00:28.8]} 41. Ra6 {[%clk 0:00:38.8]}
41... Bd4 {[%clk 0:00:20]} 42. Bd2 {[%clk 0:00:36.2]} 42... Rb2 {[%clk
0:00:18.8]} 43. Kd3 {[%clk 0:00:32.8]} 43... Rb3+ {[%clk 0:00:18.9]} 44. Ke4
{[%clk 0:00:30.1]} 44... g6 {[%clk 0:00:17.3]} 45. Bb4 {[%clk 0:00:24]} 45...
f5+ {[%clk 0:00:15.9]} 46. Kd5 {[%clk 0:00:24.3]} 46... Bxf2 {[%clk 0:00:11.9]}
47. Kxe5 {[%clk 0:00:22.4]} 47... Bg3+ {[%clk 0:00:11.2]} 48. Kf6 {[%clk
0:00:21.3]} 48... f4 {[%clk 0:00:08.7]} 49. Kxg6 {[%clk 0:00:17.8]} 49... h4
{[%clk 0:00:08.7]} 50. Rd6+ {[%clk 0:00:14.7]} 50... Kc7 {[%clk 0:00:09.1]} 51.
Rf6 {[%clk 0:00:15]} 51... Rb2 {[%clk 0:00:08.8]} 52. Bd6+ {[%clk 0:00:15.1]}
52... Kd7 {[%clk 0:00:08.1]} 53. Bxf4 {[%clk 0:00:15.9]} 53... Rxg2 {[%clk
0:00:08.4]} 54. Kh5 {[%clk 0:00:15.2]} 54... Bxf4 {[%clk 0:00:05.8]} 55. Rxf4
{[%clk 0:00:15.3]} 55... Rg3 {[%clk 0:00:06.7]} 56. Kxh4 {[%clk 0:00:11.4]}
56... Rxa3 {[%clk 0:00:06.7]} 57. Kg4 {[%clk 0:00:11]} 57... Ke6 {[%clk
0:00:07.1]} 58. h4 {[%clk 0:00:11]} 58... Ra1 {[%clk 0:00:07.7]} 59. Kg5 {[%clk
0:00:08.3]} 59... Rg1+ {[%clk 0:00:07.9]} 60. Kh6 {[%clk 0:00:08.9]} 60... Rg2
{[%clk 0:00:07.6]} 61. h5 {[%clk 0:00:07.9]} 61... Ke7 {[%clk 0:00:08.5]} 62.
Kh7 {[%clk 0:00:08.1]} 62... Rg5 {[%clk 0:00:07.8]} 63. h6 {[%clk 0:00:07.7]}
63... Rg3 {[%clk 0:00:06.4]} 64. Rf2 {[%clk 0:00:07.9]} 64... Rg5 {[%clk
0:00:05.5]} 65. Kh8 {[%clk 0:00:07.9]} 65... Rg6 {[%clk 0:00:05.4]} 66. Kh7
{[%clk 0:00:07.7]} 66... Rg4 {[%clk 0:00:05.4]} 67. Rf5 {[%clk 0:00:07.6]} 67...
Rg3 {[%clk 0:00:05.3]} 68. Kh8 {[%clk 0:00:08.1]} 68... Rg6 {[%clk 0:00:05.3]}
69. h7 {[%clk 0:00:06.1]} 69... Rg4 {[%clk 0:00:04.9]} 70. Rf1 {[%clk
0:00:05.9]} 70... Rg5 {[%clk 0:00:03.6]} 71. Rb1 {[%clk 0:00:05.8]} 71... Rg6
{[%clk 0:00:03.5]} 72. Rb8 {[%clk 0:00:05.5]} 72... Kf7 {[%clk 0:00:02.8]} 73.
Rg8 {[%clk 0:00:05.3]} 73... Rb6 {[%clk 0:00:03.2]} 74. Rc8 {[%clk 0:00:05.1]}
74... Rg6 {[%clk 0:00:02.2]} 75. Rc7+ {[%clk 0:00:05.4]} 75... Kf8 {[%clk
0:00:02.7]} 76. Rb7 {[%clk 0:00:06.1]} 76... Ke8 {[%clk 0:00:02.7]} 77. Rg7
{[%clk 0:00:04.5]} 77... Rf6 {[%clk 0:00:03.2]} 78. Kg8 {[%clk 0:00:05.4]} 78...
Rf8# {[%clk 0:00:03.2]} 0-1

[Event "*** SCC Grand Prix: Titled Tuesday Blitz"]
[Site "Chess.com"]
[Date "2020.08.11"]
[Round "9"]
[White "StellarChessPro"]
[Black "Ole83"]
[Result "0-1"]
[WhiteElo "2511"]
[BlackElo "2369"]
[TimeControl "180+1"]
[EndTime "11:47:49 PDT"]
[Termination "Ole83 won by resignation"]

1. b3 {[%clk 0:03:00.9]} 1... b6 {[%clk 0:02:55.7]} 2. Bb2 {[%clk 0:03:01.1]}
2... Bb7 {[%clk 0:02:56]} 3. Nf3 {[%clk 0:03:02]} 3... Nf6 {[%clk 0:02:55.2]} 4.
g3 {[%clk 0:03:02.6]} 4... g6 {[%clk 0:02:54.7]} 5. Bg2 {[%clk 0:03:03.2]} 5...
Bg7 {[%clk 0:02:55.2]} 6. O-O {[%clk 0:03:04.1]} 6... O-O {[%clk 0:02:55.4]} 7.
Nh4 {[%clk 0:03:05]} 7... Bxg2 {[%clk 0:02:53.1]} 8. Nxg2 {[%clk 0:03:05.9]}
8... c5 {[%clk 0:02:53.1]} 9. e3 {[%clk 0:03:05.8]} 9... Nc6 {[%clk 0:02:53]}
10. d4 {[%clk 0:03:04.4]} 10... cxd4 {[%clk 0:02:52.5]} 11. exd4 {[%clk
0:03:05.3]} 11... d5 {[%clk 0:02:52.2]} 12. Re1 {[%clk 0:03:04.6]} 12... Rc8
{[%clk 0:02:51.4]} 13. a3 {[%clk 0:03:04.5]} 13... Qd7 {[%clk 0:02:49.5]} 14.
Nd2 {[%clk 0:03:04.7]} 14... Rfe8 {[%clk 0:02:44.7]} 15. Nf3 {[%clk 0:03:04.4]}
15... Ne4 {[%clk 0:02:41.4]} 16. Ne5 {[%clk 0:02:59.6]} 16... Nxe5 {[%clk
0:02:34.8]} 17. dxe5 {[%clk 0:03:00.5]} 17... Qc6 {[%clk 0:02:32.6]} 18. Ne3
{[%clk 0:02:51.4]} 18... Red8 {[%clk 0:02:23.6]} 19. Bd4 {[%clk 0:02:45.9]}
19... Qe6 {[%clk 0:01:52.2]} 20. f4 {[%clk 0:02:30]} 20... Rc7 {[%clk
0:01:11.4]} 21. Qf3 {[%clk 0:02:27.5]} 21... f5 {[%clk 0:00:55]} 22. Rad1 {[%clk
0:02:23.3]} 22... Qc6 {[%clk 0:00:50.2]} 23. g4 {[%clk 0:02:13.4]} 23... e6
{[%clk 0:00:49.5]} 24. h4 {[%clk 0:02:12.9]} 24... fxg4 {[%clk 0:00:43.5]} 25.
Qxg4 {[%clk 0:02:10]} 25... Rf8 {[%clk 0:00:43.5]} 26. Rf1 {[%clk 0:01:59]}
26... Rcf7 {[%clk 0:00:42.1]} 27. Rf3 {[%clk 0:01:47.5]} 27... Kh8 {[%clk
0:00:41.3]} 28. Kh2 {[%clk 0:01:31.7]} 28... Bh6 {[%clk 0:00:40.6]} 29. Rdf1
{[%clk 0:01:18.8]} 29... Nd2 {[%clk 0:00:39.6]} 30. Ng2 {[%clk 0:01:02.4]} 30...
Nxf1+ {[%clk 0:00:36.5]} 31. Rxf1 {[%clk 0:01:03.3]} 31... Rf5 {[%clk
0:00:31.8]} 32. c3 {[%clk 0:00:53.4]} 32... Qb5 {[%clk 0:00:22.7]} 33. Rf2
{[%clk 0:00:53.6]} 33... Qxb3 {[%clk 0:00:21.9]} 34. Ne3 {[%clk 0:00:54.1]}
34... Bxf4+ {[%clk 0:00:19.7]} 35. Kg2 {[%clk 0:00:39.9]} 35... Bxe3 {[%clk
0:00:18.3]} 36. Bxe3 {[%clk 0:00:40.3]} 36... Qxc3 {[%clk 0:00:17.3]} 37. Re2
{[%clk 0:00:32.5]} 37... Qc4 {[%clk 0:00:15.1]} 38. Qxc4 {[%clk 0:00:25.8]}
38... dxc4 {[%clk 0:00:15]} 39. Bh6 {[%clk 0:00:26.3]} 39... Rc8 {[%clk
0:00:15.1]} 40. Bg5 {[%clk 0:00:26.6]} 40... Kg7 {[%clk 0:00:14.9]} 41. Bf6+
{[%clk 0:00:26.8]} 41... Kf7 {[%clk 0:00:15.2]} 42. Rc2 {[%clk 0:00:27.3]} 42...
Rxf6 {[%clk 0:00:15]} 43. exf6 {[%clk 0:00:27.9]} 43... Kxf6 {[%clk 0:00:15.7]}
44. Kf3 {[%clk 0:00:28.8]} 44... Ke5 {[%clk 0:00:15.6]} 45. Ke3 {[%clk
0:00:29.7]} 45... b5 {[%clk 0:00:15]} 46. Re2 {[%clk 0:00:28.5]} 46... a5 {[%clk
0:00:14.6]} 47. Kd2+ {[%clk 0:00:28.9]} 47... Kd5 {[%clk 0:00:14.5]} 48. Kc3
{[%clk 0:00:29.2]} 48... Rb8 {[%clk 0:00:14.3]} 49. Rd2+ {[%clk 0:00:29.3]}
49... Kc5 {[%clk 0:00:14.5]} 50. Re2 {[%clk 0:00:29.2]} 50... b4+ {[%clk
0:00:14.7]} 51. Kc2 {[%clk 0:00:29.9]} 51... Kd5 {[%clk 0:00:14.4]} 52. Rd2+
{[%clk 0:00:30.1]} 52... Kc5 {[%clk 0:00:14.7]} 53. Re2 {[%clk 0:00:30.5]} 53...
Rb6 {[%clk 0:00:15]} 54. Re5+ {[%clk 0:00:30.6]} 54... Kd4 {[%clk 0:00:14.2]}
55. Rxa5 {[%clk 0:00:30.8]} 55... b3+ {[%clk 0:00:13]} 56. Kb1 {[%clk
0:00:29.3]} 56... c3 {[%clk 0:00:13.1]} 57. Rg5 {[%clk 0:00:28.9]} 57... Kd3
{[%clk 0:00:11.6]} 58. Rg3+ {[%clk 0:00:29]} 58... Kd2 {[%clk 0:00:11.1]} 59.
Rg2+ {[%clk 0:00:28.4]} 59... Ke3 {[%clk 0:00:10.6]} 60. Rg3+ {[%clk 0:00:28.8]}
60... Kd4 {[%clk 0:00:10.9]} 61. Rg4+ {[%clk 0:00:29.4]} 61... Kc5 {[%clk
0:00:10.7]} 62. Rg5+ {[%clk 0:00:29.4]} 62... Kd6 {[%clk 0:00:10.7]} 63. Rg3
{[%clk 0:00:25.9]} 63... Rc6 {[%clk 0:00:10.9]} 64. Rg1 {[%clk 0:00:25]} 64...
e5 {[%clk 0:00:11]} 65. a4 {[%clk 0:00:24.8]} 65... e4 {[%clk 0:00:10.7]} 66.
Rc1 {[%clk 0:00:24.4]} 66... Kd5 {[%clk 0:00:10.5]} 67. a5 {[%clk 0:00:25.1]}
67... Kd4 {[%clk 0:00:10.6]} 68. Rd1+ {[%clk 0:00:25.6]} 68... Ke3 {[%clk
0:00:10.4]} 69. Re1+ {[%clk 0:00:25.7]} 69... Kd3 {[%clk 0:00:10.1]} 70. Rd1+
{[%clk 0:00:25.1]} 70... Ke2 {[%clk 0:00:10.2]} 71. Rh1 {[%clk 0:00:25.5]} 71...
e3 {[%clk 0:00:10.3]} 72. h5 {[%clk 0:00:24.6]} 72... gxh5 {[%clk 0:00:09.5]}
73. Rh2+ {[%clk 0:00:24.9]} 73... Kd3 {[%clk 0:00:09.3]} 74. Rh1 {[%clk
0:00:25.1]} 74... c2+ {[%clk 0:00:09.6]} 75. Kb2 {[%clk 0:00:26]} 75... Kd2
{[%clk 0:00:09.7]} 76. Rh2+ {[%clk 0:00:26.2]} 76... e2 {[%clk 0:00:09.7]} 77.
Rh1 {[%clk 0:00:26.7]} 77... c1=Q+ {[%clk 0:00:09]} 78. Rxc1 {[%clk 0:00:26.7]}
78... Rxc1 {[%clk 0:00:09.5]} 79. a6 {[%clk 0:00:27.6]} 79... e1=Q {[%clk
0:00:09.3]} 80. a7 {[%clk 0:00:28.5]} 80... Rb1+ {[%clk 0:00:09.3]} 81. Ka3
{[%clk 0:00:28.9]} 81... Qe7+ {[%clk 0:00:08.8]} 82. Ka4 {[%clk 0:00:29.7]}
82... Qxa7+ {[%clk 0:00:08.6]} 83. Kb5 {[%clk 0:00:30.6]} 83... Qb7+ {[%clk
0:00:08.9]} 84. Kc5 {[%clk 0:00:28.6]} 84... Rc1+ {[%clk 0:00:09.4]} 85. Kd4
{[%clk 0:00:29.5]} 85... Qb4+ {[%clk 0:00:08.8]} 86. Kd5 {[%clk 0:00:29.7]}
86... Qc4+ {[%clk 0:00:08.6]} 0-1